fUST/lending_fUST_20260512
["ID","MTS","AMOUNT","RATE_DAILY","PERIOD"]
[422053692,1778529081000,-500.0,0.00012973,2]
[422053709,1778529081000,-500.0,0.00012973,2]
[422053700,1778529081000,-500.0,0.00012973,2]
[422053701,1778529081000,-500.0,0.00012973,2]
[422053662,1778529081000,-512.54,0.00012876,2]
[422053667,1778529081000,-500.0,0.00012876,2]
[422053666,1778529081000,-546.18,0.00012876,2]
[422053660,1778529081000,-990.94,0.00012876,2]
[422053661,1778529081000,-683.65,0.00012876,2]
[422053664,1778529081000,-2263.78,0.00012876,2]
[422053665,1778529081000,-2523.1,0.00012876,2]
[422053663,1778529081000,-1039.82,0.00012876,2]
[422053671,1778529081000,-1473.82,0.00012876,2]
[422053673,1778529081000,-500.0,0.00012876,2]
[422053672,1778529081000,-500.0,0.00012876,2]
[422053676,1778529081000,-500.0,0.00012876,2]
[422053674,1778529081000,-500.0,0.00012876,2]
[422053675,1778529081000,-500.0,0.00012876,2]
[422053689,1778529081000,-500.0,0.00012973,2]
[422053690,1778529081000,-500.0,0.00012973,2]
[422053685,1778529081000,-500.0,0.00012973,2]
[422053679,1778529081000,-500.0,0.00012876,2]
[422053686,1778529081000,-500.0,0.00012973,2]
[422053687,1778529081000,-500.0,0.00012973,2]
[422053688,1778529081000,-500.0,0.00012973,2]
[422053683,1778529081000,-225.04190711,0.00012916,14]
[422053682,1778529081000,-635.10630186,0.00012912,7]
[422053680,1778529081000,-1613.0,0.00012882,2]
[422053677,1778529081000,-1740.68,0.00012876,2]
[422053681,1778529081000,-643.81330363,0.00012897,14]
[422053684,1778529081000,-151.0,0.00012918,2]
[422053738,1778529082000,-500.0,0.00012054,2]
[422053726,1778529082000,-245682.26509486,0.00013,2]
[422053725,1778529082000,-1278.0,0.00013,5]
[422053724,1778529082000,-628.39,0.00013,14]
[422053730,1778529082000,-793.0,0.0001,2]
[422053732,1778529082000,-500.0,0.00011506,2]
[422053741,1778529082000,-500.0,0.00012328,2]
[422053740,1778529082000,-664.85365763,0.000123,2]
[422053743,1778529082000,-295.83554058,0.00012328,2]
[422053739,1778529082000,-500.0,0.00012054,2]
[422053742,1778529082000,-530.53581398,0.00012328,2]
[422053733,1778529082000,-500.0,0.0001178,2]
[422053734,1778529082000,-500.0,0.0001178,2]
[422053735,1778529082000,-500.0,0.0001178,2]
[422053736,1778529082000,-500.0,0.00012054,2]
[422053731,1778529082000,-664.85365763,0.00011,2]
[422054084,1778530232000,-163.076487,4.501e-05,2]
[422054087,1778530232000,-102.47054034,5.947e-05,2]
[422054086,1778530232000,-300.74218788,4.897e-05,2]
[422054089,1778530232000,-113.85158833,6.897e-05,2]
[422054090,1778530232000,-241.02419337,6.897e-05,2]
[422054091,1778530232000,-1628.37658639,7.6e-05,2]
[422054088,1778530232000,-148.46919645,5.947e-05,2]
[422054127,1778530241000,-152.0,8.875e-05,7]
[422054140,1778530241000,-300.0,8.927e-05,2]
[422054142,1778530241000,-300.0,8.927e-05,2]
[422054138,1778530241000,-300.0,8.927e-05,2]
[422054136,1778530241000,-300.0,8.927e-05,2]
[422054123,1778530241000,-161.621689,8.711e-05,2]
[422054121,1778530241000,-160.0,8.711e-05,2]
[422054117,1778530241000,-5171.1504219,7.6e-05,2]
[422054119,1778530241000,-300.0,8.71e-05,2]
[422054115,1778530241000,-905.34787989,7.6e-05,2]
[422054144,1778530241000,-300.0,8.927e-05,2]
[422054125,1778530241000,-160.0,8.711e-05,2]
[422054132,1778530241000,-300.0,8.927e-05,2]
[422054187,1778530241000,-186.23522516,9.425e-05,2]
[422054129,1778530241000,-409.00937552,8.897e-05,2]
[422054185,1778530241000,-2736.66850055,9.425e-05,2]
[422054168,1778530241000,-1825.08070627,9.425e-05,2]
[422054153,1778530241000,-300.0,8.927e-05,2]
[422054150,1778530241000,-300.0,8.927e-05,2]
[422054152,1778530241000,-300.0,8.927e-05,2]
[422054155,1778530241000,-7652.12442176,9.425e-05,2]
[422054130,1778530241000,-411.78042942,8.897e-05,2]
[422054149,1778530241000,-300.0,8.927e-05,2]
[422054147,1778530241000,-300.0,8.927e-05,2]
[422054145,1778530241000,-300.0,8.927e-05,2]
[422054146,1778530241000,-300.0,8.927e-05,2]
[422054134,1778530241000,-300.0,8.927e-05,2]
[422054148,1778530241000,-300.0,8.927e-05,2]
[422054189,1778530242000,-420.0,9.581e-05,2]
[422054191,1778530242000,-537.6845,9.843e-05,2]
[422054202,1778530242000,-184.18477492,0.0001,2]
[422054200,1778530242000,-376.59758086,0.0001,2]
[422054194,1778530242000,-335.006811,0.0001,2]
[422054196,1778530242000,-12512.1987194,0.0001,2]
[422054198,1778530242000,-4623.40241914,0.0001,2]
[422054193,1778530242000,-384.70912776,9.898e-05,2]
[422054374,1778530243000,-878.91953977,0.0001,2]
[422054372,1778530243000,-2297.19620628,0.0001,2]
[422054435,1778530246000,-647.0,0.00010316,2]
[422054432,1778530246000,-600.0,0.00010199,2]
[422054431,1778530246000,-5000.0,0.0001,2]
[422054430,1778530246000,-173.79292292,0.0001,2]
[422054433,1778530246000,-500.0,0.00010294,2]
[422054437,1778530246000,-185.0,0.00010316,2]
[422054436,1778530246000,-1412.0,0.00010316,2]
[422054429,1778530246000,-1639.69947903,0.0001,2]
[422054438,1778530246000,-443.0,0.00010316,2]
[422054443,1778530246000,-500.0,0.00010941,2]
[422054441,1778530246000,-186.63307618,0.00010857,2]
[422054439,1778530246000,-7540.5045787,0.0001085,2]
[422054440,1778530246000,-13358.11449481,0.0001085,2]
[422054442,1778530246000,-463.14296934,0.00010897,2]
[422054445,1778530246000,-500.0,0.00010941,2]
[422054434,1778530246000,-2201.0,0.00010316,2]
[422054444,1778530246000,-500.0,0.00010941,2]
[422054449,1778530247000,-500.0,0.00010941,2]
[422054448,1778530247000,-383.49757801,0.00010941,2]
[422054447,1778530247000,-500.0,0.00010941,2]
[422054446,1778530247000,-500.0,0.00010941,2]
[422054451,1778530247000,-500.0,0.00010941,2]
[422054452,1778530247000,-500.0,0.00010941,2]
[422054455,1778530247000,-500.0,0.00010941,2]
[422054454,1778530247000,-500.0,0.00010941,2]
[422054457,1778530247000,-26152.73346411,0.00010942,2]
[422054450,1778530247000,-638.84996487,0.00010941,2]
[422054456,1778530247000,-500.0,0.00010941,2]
[422054453,1778530247000,-500.0,0.00010941,2]
[422054872,1778531435000,-2489.5115578,9.602e-05,2]
[422054875,1778531436000,-160.0,9.904e-05,2]
[422054874,1778531436000,-293.99767225,9.752e-05,2]
[422054878,1778531436000,-300.0,9.999e-05,2]
[422054877,1778531436000,-160.0,9.904e-05,2]
[422054879,1778531436000,-523.60051223,0.0001,2]
[422054880,1778531436000,-1657.57504594,0.0001,2]
[422054876,1778531436000,-161.621689,9.904e-05,2]
[422054911,1778531439000,-164.23710706,0.00010829,2]
[422054902,1778531439000,-3342.42495406,0.0001,2]
[422054904,1778531439000,-278.880983,0.00010346,2]
[422054905,1778531439000,-8001.9332141,0.00010346,2]
[422054903,1778531439000,-5000.0,0.0001,2]
[422054906,1778531439000,-39752.21009085,0.00010349,2]
[422054908,1778531439000,-185.0,0.00010449,2]
[422054909,1778531439000,-443.0,0.00010449,2]
[422054913,1778531439000,-936.90480692,0.0001088,2]
[422054907,1778531439000,-218.29,0.00010401,2]
[422054912,1778531439000,-4388.58151743,0.0001088,2]
[422054916,1778531439000,-29512.72824653,0.00010924,2]
[422054914,1778531439000,-31.2344875,0.00010905,2]
[422054915,1778531439000,-133.00261952,0.00010905,2]
[422054910,1778531439000,-500.0,0.00010703,2]
[422054956,1778531453000,-1989.94292828,0.00010924,2]
[422054957,1778531454000,-23352.90506383,0.00010924,2]
[422055033,1778532632000,-166.677532,9.88e-05,2]
[422055035,1778532632000,-129.02287092,9.88e-05,2]
[422055037,1778532632000,-300.0,9.999e-05,2]
[422055039,1778532632000,-5000.0,0.0001,2]
[422055031,1778532632000,-160.322468,9.761e-05,2]
[422055041,1778532632000,-2753.97712908,0.0001,2]
[422055230,1778532638000,-2999.9749059,0.00010844,2]
[422055214,1778532638000,-1347.84779635,0.0001,2]
[422055216,1778532638000,-161.621689,0.00010239,2]
[422055217,1778532638000,-160.0,0.00010239,2]
[422055218,1778532638000,-647.0,0.00010309,2]
[422055219,1778532638000,-1412.0,0.00010309,2]
[422055220,1778532638000,-2201.0,0.00010309,2]
[422055222,1778532638000,-150.362,0.00010309,2]
[422055232,1778532638000,-28444.62729276,0.00010844,2]
[422055213,1778532638000,-898.17507457,0.0001,2]
[422055223,1778532638000,-456.3999724,0.00010356,2]
[422055221,1778532638000,-151.055,0.00010309,2]
[422055228,1778532638000,-7100.07905775,0.00010844,2]
[422055231,1778532638000,-3064.4651141,0.00010844,2]
[422055227,1778532638000,-2000.00000001,0.0001075,2]
[422055215,1778532638000,-160.0,0.00010239,2]
[422055225,1778532638000,-500.0,0.000107,2]
[422055229,1778532638000,-5382.06751572,0.00010844,2]
[422055226,1778532638000,-170.20936546,0.0001075,2]
[422055224,1778532638000,-836.6429493,0.00010626,2]
[422055252,1778532640000,-260.40236955,0.00010843,2]
[422055260,1778532640000,-9.55905236,0.00010844,2]
[422055250,1778532640000,-153.72195311,0.00010843,2]
[422055256,1778532640000,-500.0,0.00010843,2]
[422055254,1778532640000,-239.59763045,0.00010843,2]
[422055262,1778532640000,-818.56969456,0.00010844,2]
[422055265,1778532640000,-7222.38778036,0.00010844,2]
[422055258,1778532640000,-322.69320164,0.00010843,2]
[422055608,1778532643000,-720.0,0.00010844,2]
[422055635,1778532644000,-15144.91822788,0.00010844,2]
[422055664,1778532647000,-1026.01566809,0.00010844,2]
[422055676,1778533235000,-300.0,9.999e-05,2]
[422055677,1778533252000,-2542.50015314,0.0001,2]
[422055678,1778533269000,-300.0,0.0001,2]
[422055679,1778533287000,-2157.49984686,0.0001,2]
[422055680,1778533305000,-685.00030628,0.0001,2]
[422055681,1778533322000,-2157.49984686,0.0001,2]
[422055682,1778533339000,-685.00030628,0.0001,2]
[422055683,1778533356000,-1472.49954058,0.0001,2]
[422055765,1778533832000,-300.0,9.612e-05,2]
[422055721,1778533832000,-6810.0306589,7.6e-05,2]
[422055723,1778533832000,-299.97645482,8.513e-05,2]
[422055725,1778533832000,-300.0,9.424e-05,2]
[422055727,1778533832000,-347.91847853,9.425e-05,2]
[422055743,1778533832000,-764.66209269,9.425e-05,2]
[422055745,1778533832000,-300.0,9.612e-05,2]
[422055747,1778533832000,-300.0,9.612e-05,2]
[422055749,1778533832000,-300.0,9.612e-05,2]
[422055752,1778533832000,-300.0,9.612e-05,2]
[422055751,1778533832000,-300.0,9.612e-05,2]
[422055740,1778533832000,-2013.05918132,9.425e-05,2]
[422055756,1778533832000,-185.33790731,9.612e-05,2]
[422055754,1778533832000,-300.0,9.612e-05,2]
[422055766,1778533832000,-236.44587264,9.612e-05,2]
[422055762,1778533832000,-238.20727493,9.612e-05,2]
[422055763,1778533832000,-300.0,9.612e-05,2]
[422055764,1778533832000,-300.0,9.612e-05,2]
[422055761,1778533832000,-61.79272507,9.612e-05,2]
[422055759,1778533832000,-300.0,9.612e-05,2]
[422055758,1778533832000,-300.0,9.612e-05,2]
[422055757,1778533832000,-114.66209269,9.612e-05,2]
[422055760,1778533832000,-300.0,9.612e-05,2]
[422055806,1778533838000,-600.0,0.00010199,2]
[422055822,1778533838000,-193.5011734,0.00010537,2]
[422055818,1778533838000,-353.97221668,0.00010513,2]
[422055820,1778533838000,-5019.59567463,0.00010536,2]
[422055810,1778533838000,-647.0,0.00010233,2]
[422055808,1778533838000,-2201.0,0.00010233,2]
[422055799,1778533838000,-6682.84235341,0.0001,2]
[422055814,1778533838000,-325.8289405,0.00010355,2]
[422055816,1778533838000,-340.0,0.00010366,2]
[422055812,1778533838000,-325.7485516,0.00010355,2]
[422055797,1778533838000,-63.55412736,9.612e-05,2]
[422055824,1778533838000,-193.50117336,0.00010551,2]
[422055803,1778533838000,-5000.0,0.0001,2]
[422055830,1778533838000,-193.50117336,0.00010591,2]
[422055801,1778533838000,-5000.0,0.0001,2]
[422055838,1778533838000,-2183.8654356,0.00010615,2]
[422055828,1778533838000,-193.50117336,0.00010578,2]
[422055853,1778533838000,-151.98,0.00010807,2]
[422055851,1778533838000,-151.82,0.00010751,2]
[422055847,1778533838000,-151.63,0.00010691,2]
[422055849,1778533838000,-151.75,0.00010711,2]
[422055856,1778533838000,-152.18,0.00010875,2]
[422055857,1778533838000,-152.43,0.00010881,2]
[422055843,1778533838000,-19514.50883243,0.0001063,2]
[422055841,1778533838000,-233.088,0.00010616,2]
[422055826,1778533838000,-193.50117336,0.00010564,2]
[422055834,1778533838000,-161.621689,0.00010605,2]
[422055832,1778533838000,-160.0,0.00010605,2]
[422055836,1778533838000,-160.0,0.00010607,2]
[422055845,1778533838000,-80485.49116757,0.0001063,2]
[422055940,1778533839000,-500.0,0.00010958,2]
[422055942,1778533839000,-500.0,0.00010958,2]
[422055938,1778533839000,-500.0,0.00010958,2]
[422055928,1778533839000,-500.0,0.00010958,2]
[422055936,1778533839000,-500.0,0.00010958,2]
[422055921,1778533839000,-500.0,0.00010958,2]
[422055930,1778533839000,-500.0,0.00010958,2]
[422055926,1778533839000,-500.0,0.00010958,2]
[422055923,1778533839000,-500.0,0.00010958,2]
[422055919,1778533839000,-500.0,0.00010958,2]
[422055944,1778533839000,-500.0,0.00010958,2]
[422055934,1778533839000,-500.0,0.00010958,2]
[422055946,1778533839000,-500.0,0.00010958,2]
[422055958,1778533839000,-500.0,0.00010958,2]
[422055950,1778533839000,-500.0,0.00010958,2]
[422055952,1778533839000,-500.0,0.00010958,2]
[422055954,1778533839000,-500.0,0.00010958,2]
[422055964,1778533839000,-500.0,0.00010958,2]
[422055956,1778533839000,-500.0,0.00010958,2]
[422055961,1778533839000,-500.0,0.00010958,2]
[422055917,1778533839000,-500.0,0.00010958,2]
[422055960,1778533839000,-500.0,0.00010958,2]
[422055963,1778533839000,-500.0,0.00010958,2]
[422055968,1778533839000,-500.0,0.00010958,2]
[422055966,1778533839000,-500.0,0.00010958,2]
[422055967,1778533839000,-500.0,0.00010958,2]
[422055969,1778533839000,-500.0,0.00010958,2]
[422055948,1778533839000,-418.79145994,0.00010958,2]
[422055910,1778533839000,-500.0,0.00010958,2]
[422055902,1778533839000,-536.36828412,0.00010957,2]
[422055912,1778533839000,-500.0,0.00010958,2]
[422055862,1778533839000,-589.97186306,0.00010957,2]
[422055860,1778533839000,-155.0,0.00010957,2]
[422055864,1778533839000,-536.36828412,0.00010957,2]
[422055866,1778533839000,-536.36828412,0.00010957,2]
[422055868,1778533839000,-536.36828412,0.00010957,2]
[422055871,1778533839000,-536.36828412,0.00010957,2]
[422055869,1778533839000,-536.36828412,0.00010957,2]
[422055875,1778533839000,-536.36828412,0.00010957,2]
[422055873,1778533839000,-536.36828412,0.00010957,2]
[422055877,1778533839000,-536.36828412,0.00010957,2]
[422055879,1778533839000,-536.36828412,0.00010957,2]
[422055881,1778533839000,-536.36828412,0.00010957,2]
[422055887,1778533839000,-536.36828412,0.00010957,2]
[422055890,1778533839000,-536.36828412,0.00010957,2]
[422055883,1778533839000,-536.36828412,0.00010957,2]
[422055885,1778533839000,-536.36828412,0.00010957,2]
[422055888,1778533839000,-536.36828412,0.00010957,2]
[422055892,1778533839000,-536.36828412,0.00010957,2]
[422055894,1778533839000,-536.36828412,0.00010957,2]
[422055896,1778533839000,-536.36828412,0.00010957,2]
[422055898,1778533839000,-536.36828412,0.00010957,2]
[422055900,1778533839000,-536.36828412,0.00010957,2]
[422055970,1778533839000,-500.0,0.00010958,2]
[422055904,1778533839000,-1556.254,0.00010958,2]
[422055914,1778533839000,-500.0,0.00010958,2]
[422055916,1778533839000,-500.0,0.00010958,2]
[422055908,1778533839000,-500.0,0.00010958,2]
[422055906,1778533839000,-500.0,0.00010958,2]
[422055971,1778533839000,-198.72585772,0.00010958,2]
[422055932,1778533839000,-647.02128219,0.00010958,2]
[422055974,1778533839000,-500.0,0.00010958,2]
[422056007,1778533839000,-500.0,0.00010958,2]
[422056009,1778533839000,-532.33214164,0.00010958,2]
[422056010,1778533839000,-500.0,0.00010958,2]
[422056013,1778533839000,-500.0,0.00010958,2]
[422056011,1778533839000,-500.0,0.00010958,2]
[422056008,1778533839000,-500.0,0.00010958,2]
[422056012,1778533839000,-500.0,0.00010958,2]
[422056014,1778533839000,-500.0,0.00010958,2]
[422056015,1778533839000,-500.0,0.00010958,2]
[422056017,1778533839000,-500.0,0.00010958,2]
[422056018,1778533839000,-500.0,0.00010958,2]
[422056019,1778533839000,-500.0,0.00010958,2]
[422056021,1778533839000,-500.0,0.00010958,2]
[422056006,1778533839000,-500.0,0.00010958,2]
[422056027,1778533839000,-500.0,0.00010958,2]
[422056023,1778533839000,-500.0,0.00010958,2]
[422056022,1778533839000,-500.0,0.00010958,2]
[422056020,1778533839000,-500.0,0.00010958,2]
[422056026,1778533839000,-500.0,0.00010958,2]
[422056024,1778533839000,-500.0,0.00010958,2]
[422056028,1778533839000,-500.0,0.00010958,2]
[422056029,1778533839000,-500.0,0.00010958,2]
[422056032,1778533839000,-500.0,0.00010958,2]
[422056031,1778533839000,-503.9,0.00010958,2]
[422056030,1778533839000,-500.0,0.00010958,2]
[422056034,1778533839000,-500.0,0.00010958,2]
[422055977,1778533839000,-500.0,0.00010958,2]
[422056033,1778533839000,-500.0,0.00010958,2]
[422056025,1778533839000,-500.0,0.00010958,2]
[422056005,1778533839000,-666.77,0.00010958,2]
[422056016,1778533839000,-500.0,0.00010958,2]
[422056004,1778533839000,-500.0,0.00010958,2]
[422055972,1778533839000,-500.0,0.00010958,2]
[422056003,1778533839000,-500.0,0.00010958,2]
[422055978,1778533839000,-500.0,0.00010958,2]
[422055979,1778533839000,-500.0,0.00010958,2]
[422055982,1778533839000,-500.0,0.00010958,2]
[422055980,1778533839000,-500.0,0.00010958,2]
[422055983,1778533839000,-500.0,0.00010958,2]
[422055981,1778533839000,-500.0,0.00010958,2]
[422055984,1778533839000,-500.0,0.00010958,2]
[422055986,1778533839000,-500.0,0.00010958,2]
[422055990,1778533839000,-500.0,0.00010958,2]
[422055988,1778533839000,-500.0,0.00010958,2]
[422055989,1778533839000,-500.0,0.00010958,2]
[422055985,1778533839000,-500.0,0.00010958,2]
[422055987,1778533839000,-500.0,0.00010958,2]
[422055993,1778533839000,-490.0,0.00010958,2]
[422056000,1778533839000,-500.0,0.00010958,2]
[422055991,1778533839000,-500.0,0.00010958,2]
[422056002,1778533839000,-500.0,0.00010958,2]
[422056001,1778533839000,-500.0,0.00010958,2]
[422055996,1778533839000,-500.0,0.00010958,2]
[422055999,1778533839000,-500.0,0.00010958,2]
[422055998,1778533839000,-500.0,0.00010958,2]
[422055976,1778533839000,-500.0,0.00010958,2]
[422055997,1778533839000,-1475.92,0.00010958,2]
[422055992,1778533839000,-500.0,0.00010958,2]
[422055994,1778533839000,-500.0,0.00010958,2]
[422055995,1778533839000,-500.0,0.00010958,2]
[422056082,1778533840000,-500.0,0.00010958,2]
[422056080,1778533840000,-500.0,0.00010958,2]
[422056079,1778533840000,-556.24771766,0.00010958,2]
[422056077,1778533840000,-500.0,0.00010958,2]
[422056074,1778533840000,-500.0,0.00010958,2]
[422056069,1778533840000,-1351.41,0.00010958,2]
[422056076,1778533840000,-500.0,0.00010958,2]
[422056073,1778533840000,-500.0,0.00010958,2]
[422056070,1778533840000,-500.0,0.00010958,2]
[422056071,1778533840000,-500.0,0.00010958,2]
[422056078,1778533840000,-500.0,0.00010958,2]
[422056072,1778533840000,-380.41351038,0.00010958,2]
[422056075,1778533840000,-500.0,0.00010958,2]
[422056090,1778533840000,-500.0,0.00010958,2]
[422056092,1778533840000,-500.0,0.00010958,2]
[422056086,1778533840000,-500.0,0.00010958,2]
[422056096,1778533840000,-500.0,0.00010958,2]
[422056089,1778533840000,-500.0,0.00010958,2]
[422056087,1778533840000,-500.0,0.00010958,2]
[422056093,1778533840000,-500.0,0.00010958,2]
[422056088,1778533840000,-500.0,0.00010958,2]
[422056083,1778533840000,-500.0,0.00010958,2]
[422056095,1778533840000,-500.0,0.00010958,2]
[422056091,1778533840000,-500.0,0.00010958,2]
[422056094,1778533840000,-500.0,0.00010958,2]
[422056067,1778533840000,-500.0,0.00010958,2]
[422056112,1778533840000,-500.0,0.00010958,2]
[422056085,1778533840000,-500.0,0.00010958,2]
[422056065,1778533840000,-500.0,0.00010958,2]
[422056035,1778533840000,-500.0,0.00010958,2]
[422056066,1778533840000,-500.0,0.00010958,2]
[422056105,1778533840000,-500.0,0.00010958,2]
[422056039,1778533840000,-500.0,0.00010958,2]
[422056036,1778533840000,-171.25887002,0.00010958,2]
[422056038,1778533840000,-500.0,0.00010958,2]
[422056040,1778533840000,-500.0,0.00010958,2]
[422056041,1778533840000,-500.0,0.00010958,2]
[422056042,1778533840000,-500.0,0.00010958,2]
[422056044,1778533840000,-500.0,0.00010958,2]
[422056043,1778533840000,-500.0,0.00010958,2]
[422056047,1778533840000,-500.0,0.00010958,2]
[422056046,1778533840000,-500.0,0.00010958,2]
[422056045,1778533840000,-255.87,0.00010958,2]
[422056048,1778533840000,-500.0,0.00010958,2]
[422056049,1778533840000,-500.0,0.00010958,2]
[422056052,1778533840000,-1451.07,0.00010958,2]
[422056053,1778533840000,-500.0,0.00010958,2]
[422056055,1778533840000,-500.0,0.00010958,2]
[422056050,1778533840000,-500.0,0.00010958,2]
[422056051,1778533840000,-500.0,0.00010958,2]
[422056054,1778533840000,-500.0,0.00010958,2]
[422056056,1778533840000,-500.0,0.00010958,2]
[422056060,1778533840000,-500.0,0.00010958,2]
[422056059,1778533840000,-196.07918185,0.00010958,2]
[422056057,1778533840000,-500.0,0.00010958,2]
[422056058,1778533840000,-500.0,0.00010958,2]
[422056061,1778533840000,-500.0,0.00010958,2]
[422056063,1778533840000,-658.04,0.00010958,2]
[422056062,1778533840000,-500.0,0.00010958,2]
[422056064,1778533840000,-500.0,0.00010958,2]
[422056068,1778533840000,-500.0,0.00010958,2]
[422056107,1778533840000,-500.0,0.00010958,2]
[422056121,1778533840000,-418.15855167,0.00010958,2]
[422056103,1778533840000,-500.0,0.00010958,2]
[422056145,1778533840000,-500.0,0.00010958,2]
[422056147,1778533840000,-502.65,0.00010958,2]
[422056146,1778533840000,-500.0,0.00010958,2]
[422056151,1778533840000,-500.0,0.00010958,2]
[422056150,1778533840000,-500.0,0.00010958,2]
[422056152,1778533840000,-500.0,0.00010958,2]
[422056149,1778533840000,-500.0,0.00010958,2]
[422056148,1778533840000,-500.0,0.00010958,2]
[422056153,1778533840000,-500.0,0.00010958,2]
[422056155,1778533840000,-500.0,0.00010958,2]
[422056156,1778533840000,-500.0,0.00010958,2]
[422056154,1778533840000,-500.0,0.00010958,2]
[422056157,1778533840000,-500.0,0.00010958,2]
[422056144,1778533840000,-500.0,0.00010958,2]
[422056158,1778533840000,-676.01,0.00010958,2]
[422056161,1778533840000,-500.0,0.00010958,2]
[422056163,1778533840000,-500.0,0.00010958,2]
[422056166,1778533840000,-750.25,0.00010958,2]
[422056164,1778533840000,-882.37,0.00010958,2]
[422056165,1778533840000,-500.0,0.00010958,2]
[422056162,1778533840000,-3624.94,0.00010958,2]
[422056167,1778533840000,-500.0,0.00010958,2]
[422056168,1778533840000,-500.0,0.00010958,2]
[422056170,1778533840000,-500.0,0.00010958,2]
[422056169,1778533840000,-500.0,0.00010958,2]
[422056171,1778533840000,-3049.27,0.00010958,2]
[422056172,1778533840000,-500.0,0.00010958,2]
[422056098,1778533840000,-500.0,0.00010958,2]
[422056160,1778533840000,-500.0,0.00010958,2]
[422056143,1778533840000,-500.0,0.00010958,2]
[422056159,1778533840000,-500.0,0.00010958,2]
[422056137,1778533840000,-500.0,0.00010958,2]
[422056101,1778533840000,-500.0,0.00010958,2]
[422056142,1778533840000,-500.0,0.00010958,2]
[422056100,1778533840000,-500.0,0.00010958,2]
[422056111,1778533840000,-500.0,0.00010958,2]
[422056109,1778533840000,-500.0,0.00010958,2]
[422056117,1778533840000,-500.0,0.00010958,2]
[422056114,1778533840000,-617.36,0.00010958,2]
[422056113,1778533840000,-500.0,0.00010958,2]
[422056115,1778533840000,-1000.0,0.00010958,2]
[422056119,1778533840000,-500.0,0.00010958,2]
[422056118,1778533840000,-500.0,0.00010958,2]
[422056120,1778533840000,-500.0,0.00010958,2]
[422056125,1778533840000,-500.0,0.00010958,2]
[422056122,1778533840000,-500.0,0.00010958,2]
[422056116,1778533840000,-500.0,0.00010958,2]
[422056126,1778533840000,-1132.5,0.00010958,2]
[422056135,1778533840000,-500.0,0.00010958,2]
[422056123,1778533840000,-500.0,0.00010958,2]
[422056140,1778533840000,-500.0,0.00010958,2]
[422056138,1778533840000,-500.0,0.00010958,2]
[422056139,1778533840000,-500.0,0.00010958,2]
[422056133,1778533840000,-500.0,0.00010958,2]
[422056131,1778533840000,-500.0,0.00010958,2]
[422056134,1778533840000,-500.0,0.00010958,2]
[422056129,1778533840000,-500.0,0.00010958,2]
[422056130,1778533840000,-500.0,0.00010958,2]
[422056127,1778533840000,-500.0,0.00010958,2]
[422056128,1778533840000,-500.0,0.00010958,2]
[422056124,1778533840000,-505.36153468,0.00010958,2]
[422056136,1778533840000,-500.0,0.00010958,2]
[422056194,1778533841000,-500.0,0.00010958,2]
[422056195,1778533841000,-500.0,0.00010958,2]
[422056197,1778533841000,-500.0,0.00010958,2]
[422056198,1778533841000,-500.0,0.00010958,2]
[422056196,1778533841000,-570.67250014,0.00010958,2]
[422056192,1778533841000,-1215.9,0.00010958,2]
[422056208,1778533841000,-391.50097069,0.00010958,2]
[422056201,1778533841000,-500.0,0.00010958,2]